bitfinex-derivatives/quotes_ETHF0:USTF0_20250405
["timestamp","ask_amount","ask_price","bid_price","bid_amount"]
[1743811779659,6.7058,1814.3,1814.2,3.02595096]
[1743811780472,7.47774,1814.3,1814.2,1.52135096]
[1743811780672,8.91904,1814.3,1814.2,1.52135096]
[1743811780871,8.91904,1814.3,1814.2,0.77198]
[1743811782071,0.77198,1814.2,1814.1,2.29109]
[1743811782275,2.95128,1814.2,1814.1,3.04152843]
[1743811782872,2.95128,1814.2,1814.1,0.75043843]
[1743811783771,0.77206,1814.0,1813.9,0.77207]
[1743811783965,7.47786,1814.0,1813.9,0.77207]
[1743811784165,0.77211,1813.9,1813.8,2.29122]
[1743811784366,2.16811,1813.9,1813.8,3.08588502]
[1743811784568,2.88581,1813.9,1813.8,2.29122]
[1743811784870,2.88581,1813.9,1813.8,3.04218288]
[1743811786369,2.88581,1813.9,1813.8,0.75096288]
[1743811786667,0.77219,1813.7,1813.6,2.20802]
[1743811786861,3.97999,1813.7,1813.6,2.20802]
[1743811787265,5.49039,1813.7,1813.6,2.95908967]
[1743811787671,5.49039,1813.7,1813.6,2.20802]
[1743811788171,4.7182,1813.7,1813.6,2.20802]
[1743811788771,5.49039,1813.7,1813.6,2.20802]
[1743811789171,8.98839,1813.7,1813.6,2.20802]
[1743811789371,8.2162,1813.7,1813.6,2.20802]
[1743811795677,8.98839,1813.7,1813.6,2.20802]
[1743811797379,8.2162,1813.7,1813.3,3.34088]
[1743811797578,2.1628,1813.6,1813.4,2.25194502]
[1743811797775,2.1628,1813.6,1813.5,2.27448]
[1743811800184,2.93503,1813.6,1813.2,1.93097]
[1743811800480,5.4597,1813.5,1813.4,0.77232]
[1743811800781,5.4597,1813.5,1813.4,2.31520179]
[1743811801482,0.77238,1813.3,1813.1,0.77241]
[1743811801670,8.2091,1813.2,1813.1,0.77241]
[1743811801975,3.2078,1813.2,1813.1,1.56617105]
[1743811802180,6.7068,1813.4,1813.3,0.77236]
[1743811802484,3.2078,1813.4,1813.3,1.56552671]
[1743811802681,8.2091,1813.6,1813.5,0.77228]
[1743811803481,8.2091,1813.6,1813.5,2.29528]
[1743811805078,3.2078,1813.6,1813.5,2.29528]
[1743811805283,3.2078,1813.6,1813.5,3.08842899]
[1743811805585,3.2078,1813.6,1813.5,2.29528]
[1743811806083,5.3064,1813.6,1813.5,2.29528]
[1743811806589,5.3064,1813.6,1813.4,0.7723]
[1743811806888,0.77232,1813.4,1813.3,1.4439]
[1743811807079,3.98012,1813.4,1813.2,0.77239]
[1743811807280,2.1579,1813.3,1813.2,0.77239]
[1743811807479,2.93026,1813.3,1813.1,2.21631]
[1743811807686,5.3684,1813.2,1813.1,2.21631]
[1743811807984,5.3684,1813.2,1813.1,3.01020505]
[1743811808881,8.8684,1813.2,1813.1,3.01024505]
[1743811810185,8.8684,1813.2,1813.1,2.21635]
[1743811811887,6.7078,1813.2,1813.1,2.21635]
[1743811812179,3.2078,1813.2,1813.1,3.01085133]
[1743811812385,6.7068,1813.4,1813.3,0.77236]
[1743811812786,3.2078,1813.4,1813.3,0.77236]
[1743811812988,4.7442,1813.6,1813.5,0.77228]
[1743811813188,8.2482,1813.6,1813.5,0.77228]
[1743811813887,6.7118,1813.6,1813.5,0.77228]
[1743811814093,6.7118,1813.6,1813.5,1.51740293]
[1743811823104,6.7118,1813.6,1813.5,2.31264916]
[1743811824503,6.7118,1813.6,1813.5,2.31276955]
[1743811825002,6.7118,1813.6,1813.5,1.51740293]
[1743811826603,8.1374,1813.6,1813.5,1.51740293]
[1743811827003,8.90963,1813.6,1813.5,0.74512293]
[1743811827507,8.90963,1813.6,1813.4,0.77232]
[1743811827698,1.4256,1813.5,1813.4,0.77232]
[1743811828094,1.4256,1813.5,1813.4,1.51848586]
[1743811828701,6.7118,1813.6,1813.5,0.77228]
[1743811828903,6.7118,1813.6,1813.5,2.19648]
[1743811829205,6.7118,1813.6,1813.5,3.73815881]
[1743811829406,6.7118,1813.6,1813.5,2.94264586]
[1743811829705,6.7118,1813.6,1813.5,3.7381342]
[1743811830202,6.7118,1813.6,1813.5,2.94264586]
[1743811830503,6.7118,1813.6,1813.5,3.73816528]
[1743811830806,3.2078,1813.6,1813.5,3.73816528]
[1743811832107,0.00826811,1813.8,1813.7,0.77219]
[1743811832402,0.00826811,1813.8,1813.7,1.56770942]
[1743811832803,0.00826811,1813.8,1813.7,3.04030942]
[1743811832998,8.11e-06,1813.8,1813.7,9.49427528]
[1743811833303,8.11e-06,1813.8,1813.7,10.02490929]
[1743811838906,8.11e-06,1813.8,1813.7,9.49427528]
[1743811840311,8.11e-06,1813.8,1813.7,9.49010291]
[1743811842413,8.11e-06,1813.8,1813.7,3.78230291]
[1743811842613,1.46380811,1813.8,1813.7,3.78230291]
[1743811842812,2.87890811,1813.8,1813.7,3.78230291]
[1743811843113,2.87890811,1813.8,1813.7,3.78229054]
[1743811843914,2.87890811,1813.8,1813.7,2.99095586]
[1743811844317,2.87890811,1813.8,1813.7,1.51835586]
[1743811850216,2.87890811,1813.8,1813.7,2.31047661]
[1743811850517,2.87890811,1813.8,1813.7,2.31048133]
[1743811850717,2.87890811,1813.8,1813.7,1.51835586]
[1743811851519,2.87890811,1813.8,1813.7,2.31058737]
[1743811853819,2.87890811,1813.8,1813.7,1.51835586]
[1743811855215,2.87890811,1813.8,1813.7,2.31105039]
[1743811855421,2.87890811,1813.8,1813.7,1.51835586]
[1743811855920,2.87890811,1813.8,1813.7,2.31105374]
[1743811856817,2.2373,1814.2,1814.1,0.77202]
[1743811857016,2.2373,1814.2,1814.1,1.51818586]
[1743811857224,2.2373,1814.2,1814.1,2.31086107]
[1743811857413,2.2373,1814.2,1814.1,1.51818586]
[1743811857619,2.2373,1814.2,1814.1,2.31082937]
[1743811857921,0.74156811,1814.3,1814.2,0.77198]
[1743811858122,0.74156811,1814.3,1814.2,3.05312351]
[1743811858319,0.74156811,1814.3,1814.2,3.79928937]
[1743811858823,0.00826811,1814.3,1814.2,3.79928937]
[1743811859020,0.00826811,1814.3,1814.2,7.00708937]
[1743811861423,0.00826811,1814.3,1814.2,3.79928937]
[1743811861816,0.00826811,1814.3,1814.2,7.00708937]
[1743811868926,0.00826811,1814.3,1814.2,7.00613565]
[1743811870728,0.00826811,1814.3,1814.2,7.00608238]
[1743811872431,8.11e-06,1814.3,1814.2,9.50575466]
[1743811872619,8.11e-06,1814.3,1814.2,10.03415854]
[1743811873027,8.11e-06,1814.3,1814.2,15.96015854]
[1743811873328,8.11e-06,1814.3,1814.2,16.37147153]
[1743811873533,3.2078,1815.1,1814.2,24.75549153]
[1743811873730,0.18881706,2699.9,1814.2,24.75549153]
[1743811873731,2.913,1815.2,1815.1,0.7716]
[1743811873935,2.913,1815.2,1815.1,2.3042]
[1743811874132,2.913,1815.2,1815.1,3.84064029]
[1743811874430,2.913,1815.2,1815.1,3.05036586]
[1743811875732,0.00826811,1815.3,1815.1,3.05036586]
[1743811875733,0.00826811,1815.3,1815.2,0.77155]
[1743811875922,0.00826811,1815.3,1815.2,2.16945]
[1743811876929,0.00826811,1815.3,1815.2,2.9091335]
[1743811877733,0.00826811,1815.3,1815.2,6.1169335]
[1743811878032,0.00826811,1815.3,1815.2,6.90513381]
[1743811879829,0.00826811,1815.3,1815.2,12.90913381]
[1743811880032,8.11e-06,1815.3,1815.2,12.90913381]
[1743811881837,8.11e-06,1815.3,1815.2,12.90730365]
[1743811883635,8.11e-06,1815.3,1815.2,12.90714443]
[1743811884736,8.11e-06,1815.3,1815.2,12.91814443]
[1743811885233,8.11e-06,1815.3,1815.2,9.40314443]
[1743811885433,8.11e-06,1815.3,1815.2,12.91914443]
[1743811886234,8.11e-06,1815.3,1815.2,9.40314443]
[1743811886439,8.11e-06,1815.3,1815.2,12.91814443]
[1743811886735,8.11e-06,1815.3,1815.2,9.40314443]
[1743811886935,8.11e-06,1815.3,1815.2,12.91814443]
[1743811887123,8.11e-06,1815.3,1815.2,5.50524443]
[1743811887329,1.48970811,1815.3,1815.2,4.7190335]
[1743811887630,1.48970811,1815.3,1815.2,5.50636267]
[1743811888338,1.48970811,1815.3,1815.2,4.7190335]
[1743811889640,8.11e-06,1815.3,1815.2,5.50649023]
[1743811889832,8.11e-06,1815.3,1815.2,6.94789023]
[1743811890034,8.11e-06,1815.3,1815.2,9.44789023]
[1743811891046,8.11e-06,1815.3,1815.2,8.6604335]
[1743811891240,8.11e-06,1815.3,1815.2,9.44763114]
[1743811891943,8.11e-06,1815.3,1815.2,6.94763114]
[1743811893141,8.11e-06,1815.3,1815.2,9.02323114]
[1743811893936,8.11e-06,1815.3,1815.2,5.50623114]
[1743811894138,8.11e-06,1815.3,1815.2,1.5112335]
[1743811894950,8.11e-06,1815.3,1815.2,0.77155]
[1743811897051,1.39550811,1815.3,1815.2,0.77155]
[1743811898249,1.39550811,1815.3,1815.2,1.51148926]
[1743811899339,1.39550811,1815.3,1815.2,2.30136489]
[1743811899751,1.39550811,1815.3,1815.2,1.51148926]
[1743811900250,1.39550811,1815.3,1815.2,2.30134599]
[1743811900443,1.39550811,1815.3,1815.2,2.30190148]
[1743811904351,1.39550811,1815.3,1815.2,2.3036973]
[1743811906151,1.39550811,1815.3,1815.2,2.30383539]
[1743811910057,1.39550811,1815.3,1815.2,2.30379826]
[1743811911852,1.39550811,1815.3,1815.2,2.30392236]
[1743811917951,8.11e-06,1815.3,1815.2,5.51172236]
[1743811918155,8.11e-06,1815.3,1815.2,5.47268926]
[1743811918357,8.11e-06,1815.3,1815.2,7.41378996]
[1743811918857,8.11e-06,1815.3,1815.2,6.88428926]
[1743811920163,8.11e-06,1815.3,1815.2,8.20617928]
[1743811921673,8.11e-06,1815.3,1815.2,8.20649319]
[1743811922473,8.11e-06,1815.3,1815.2,3.71567428]
[1743811922868,8.11e-06,1815.3,1815.2,2.30407428]
[1743811923063,8.11e-06,1815.3,1815.2,1.53364873]
[1743811923264,8.11e-06,1815.3,1815.2,1.53370065]
[1743811923470,1.50510811,1815.3,1815.2,1.53370065]
[1743811923672,4.77661811,1815.3,1815.2,1.53370065]
[1743811923976,7.98441811,1815.3,1815.2,1.53370065]
[1743811924171,7.98441811,1815.3,1815.2,0.73993926]
[1743811925869,0.77156,1815.2,1815.0,0.77988811]
[1743811926076,1.4701,1815.1,1815.0,0.77988811]
[1743811926276,1.4701,1815.1,1815.0,1.5734984]
[1743811927772,1.4701,1815.1,1815.0,1.57306827]
[1743811928572,1.4701,1815.1,1815.0,1.57285319]
[1743811928772,8.11e-06,1815.3,1815.2,0.77155]
[1743811929077,8.11e-06,1815.3,1815.2,1.56451508]
[1743811930280,8.11e-06,1815.3,1815.2,3.02761508]
[1743811933373,8.11e-06,1815.3,1815.2,6.53761508]
[1743811938482,8.11e-06,1815.3,1815.2,7.29951619]
[1743811939278,8.11e-06,1815.3,1815.2,7.29884688]
[1743811942185,8.11e-06,1815.3,1815.2,2.32574688]
[1743811942381,1.46500811,1815.3,1815.2,2.32574688]
[1743811942781,8.11e-06,1815.3,1815.2,2.32574688]
[1743811942979,8.11e-06,1815.3,1815.2,3.74254688]
[1743811943586,8.11e-06,1815.3,1815.2,3.74233043]
[1743811949289,8.11e-06,1815.3,1815.2,4.27126269]
[1743811950789,8.11e-06,1815.3,1815.2,7.77426269]
[1743811960595,8.11e-06,1815.3,1815.2,7.77567405]
[1743811962400,8.11e-06,1815.3,1815.2,7.77557614]
[1743811966701,8.11e-06,1815.3,1815.2,10.98337614]
[1743811968403,8.11e-06,1815.3,1815.2,11.73147614]
[1743811971910,8.11e-06,1815.3,1815.2,11.73201723]
[1743811972612,0.74300811,1815.3,1815.2,11.73201723]
[1743811975216,0.74300811,1815.3,1815.2,8.52421723]
[1743811975414,0.74300811,1815.3,1815.2,11.73201723]
[1743811975615,0.74300811,1815.3,1815.2,11.7340365]
[1743811977016,0.74300811,1815.3,1815.2,11.73414964]
[1743811977418,2.19900811,1815.3,1815.2,11.7342839]
[1743811977620,2.19900811,1815.3,1815.2,10.9861839]
[1743811978620,2.19900811,1815.3,1815.2,5.2948339]
[1743811978819,2.19900811,1815.3,1815.2,2.0870339]
[1743811979026,2.19900811,1815.3,1815.2,2.8585839]
[1743811979411,2.19900811,1815.3,1815.2,2.32800126]
[1743811980318,2.19900811,1815.3,1815.2,2.32805457]
[1743811980821,2.19900811,1815.3,1815.2,1.53323466]
[1743811981010,2.19900811,1815.3,1815.2,2.32803535]
[1743811981422,2.19900811,1815.3,1815.2,1.53323466]
[1743811982111,2.19900811,1815.3,1815.2,6.06640327]
[1743811982316,2.19900811,1815.3,1815.2,2.85860327]
[1743811982523,2.19900811,1815.3,1815.2,1.53323466]
[1743811983021,2.19900811,1815.3,1815.2,2.06395609]
[1743811983220,2.19900811,1815.3,1815.2,2.85866484]
[1743811983618,2.19900811,1815.3,1815.2,2.32794341]
[1743811983916,2.19900811,1815.3,1815.2,2.32795995]
[1743811984121,2.19900811,1815.3,1815.2,1.55640995]
[1743811985621,5.47051811,1815.3,1815.2,1.55640995]
[1743811985820,4.69900811,1815.3,1815.2,1.55640995]
[1743811986014,4.69900811,1815.3,1815.2,1.55594002]
[1743811986219,4.69900811,1815.3,1815.2,2.32749002]
[1743811986420,2.19900811,1815.3,1815.2,2.32749002]
[1743811992317,4.69900811,1815.3,1815.2,2.32749002]
[1743811992719,5.47051811,1815.3,1815.2,0.76168466]
[1743811993332,0.77155,1815.2,1815.1,0.77159]
[1743811993631,5.43445,1815.2,1815.1,0.77159]
[1743811993830,7.1629,1815.2,1815.1,0.77159]
[1743811994027,7.1629,1815.2,1815.1,1.50449946]
[1743811994229,7.1629,1815.2,1815.1,0.77159]
[1743811995025,4.6629,1815.2,1815.1,1.56458634]
[1743811995226,4.6629,1815.2,1815.1,0.77159]
[1743811995437,4.6629,1815.2,1815.1,1.50421651]
[1743811998030,5.43445,1815.2,1815.1,1.50421651]
[1743811998231,5.43445,1815.2,1815.1,0.77159]
[1743811998432,4.6629,1815.2,1815.1,0.77159]
[1743812001431,4.6629,1815.2,1815.1,1.50365911]
[1743812004336,4.6629,1815.2,1815.1,2.97975911]
[1743812004537,4.6629,1815.2,1815.1,3.77154882]
[1743812004931,4.6629,1815.2,1815.1,2.97975911]
[1743812005434,4.6629,1815.2,1815.1,3.77141074]
[1743812005829,3.2078,1815.2,1815.1,3.77141074]
[1743812006041,0.74300811,1815.3,1815.2,0.77155]
[1743812006234,2.27260811,1815.3,1815.2,2.19215]
[1743812006435,2.27260811,1815.3,1815.2,3.71595528]
[1743812008645,2.27260811,1815.3,1815.2,3.71681301]
[1743812009345,8.11e-06,1815.3,1815.2,3.71681301]
[1743812014147,8.11e-06,1815.3,1815.2,3.71641949]
[1743812017047,8.11e-06,1815.3,1815.2,2.94486949]
[1743812017442,1.42510811,1815.3,1815.2,3.71641949]
[1743812018047,1.42510811,1815.3,1815.2,2.94486949]
[1743812018444,1.42510811,1815.3,1815.2,3.71641949]
[1743812019946,1.42510811,1815.3,1815.2,3.71666397]
[1743812024153,8.11e-06,1815.3,1815.2,3.71666397]
[1743812024954,8.11e-06,1815.3,1815.2,4.45426397]
[1743812030457,8.11e-06,1815.3,1815.2,4.9822396]
[1743812030856,8.11e-06,1815.3,1815.2,4.98223518]
[1743812035459,8.11e-06,1815.3,1815.2,8.19003518]
[1743812036063,8.11e-06,1815.3,1815.2,11.68603518]
[1743812044072,8.11e-06,1815.3,1815.2,11.68585352]
[1743812044273,8.11e-06,1815.3,1815.2,11.15806397]
[1743812044474,8.11e-06,1815.3,1815.2,10.36561911]
[1743812044668,8.11e-06,1815.3,1815.2,11.68543223]
[1743812047871,8.11e-06,1815.3,1815.2,7.45190955]
[1743812048171,8.11e-06,1815.3,1815.2,2.29576203]
[1743812048876,0.71540811,1815.3,1815.2,2.29576203]
[1743812049078,1.41690811,1815.3,1815.2,2.29592407]
[1743812049869,1.41690811,1815.3,1815.2,2.29594752]
[1743812050578,1.41690811,1815.3,1815.2,3.73684752]
[1743812053584,1.41690811,1815.3,1815.2,3.73696356]
[1743812054083,1.41690811,1815.3,1815.2,4.26501847]
[1743812057387,1.41690811,1815.3,1815.2,4.26538108]
[1743812057888,1.41690811,1815.3,1815.2,4.26537756]
[1743812061287,1.41690811,1815.3,1815.2,4.26595891]
[1743812063089,1.41690811,1815.3,1815.2,4.2661627]
[1743812063590,1.41690811,1815.3,1815.2,2.8252627]
[1743812064992,1.41690811,1815.3,1815.2,2.82536882]
[1743812066889,1.41690811,1815.3,1815.2,4.28556882]
[1743812068793,1.41690811,1815.3,1815.2,4.2859726]
[1743812069693,0.71540811,1815.3,1815.2,4.2859726]
[1743812069991,8.11e-06,1815.3,1815.2,4.2859726]
[1743812070694,0.70520811,1815.3,1815.2,4.28594474]
[1743812070893,1.44780811,1815.3,1815.2,4.28594474]
[1743812072496,1.44780811,1815.3,1815.2,4.28599309]
[1743812074400,1.44780811,1815.3,1815.2,4.28609662]
[1743812078303,1.44780811,1815.3,1815.2,4.28627261]
[1743812080104,1.44780811,1815.3,1815.2,4.28662549]
[1743812081203,1.44780811,1815.3,1815.2,2.29748385]
[1743812082101,1.44780811,1815.3,1815.2,2.2975623]
[1743812082295,1.44780811,1815.3,1815.2,1.5260123]
[1743812082495,1.44780811,1815.3,1815.2,2.2975623]
[1743812083804,1.44780811,1815.3,1815.2,2.29717732]
[1743812085806,1.44780811,1815.3,1815.2,2.29677172]
[1743812089409,1.44780811,1815.3,1815.2,1.56470261]
[1743812089604,1.44780811,1815.3,1815.2,2.3303285]
[1743812091308,1.44780811,1815.3,1815.2,2.33013795]
[1743812097012,1.44780811,1815.3,1815.2,2.33004512]
[1743812099400,1.44780811,1815.3,1815.2,5.53784512]
[1743812099608,1.44780811,1815.3,1815.2,2.33004512]
[1743812099808,1.44780811,1815.3,1815.2,2.8582603]
[1743812100003,1.44780811,1815.3,1815.2,4.2831603]
[1743812100208,1.44780811,1815.3,1815.2,3.75494512]
[1743812101703,8.11e-06,1815.3,1815.2,7.49096855]
[1743812102406,8.11e-06,1815.3,1815.2,9.99096855]
[1743812102807,8.11e-06,1815.3,1815.2,15.91696855]
[1743812103308,0.751,1815.8,1815.7,0.77134]
[1743812103513,0.751,1815.8,1815.7,1.58469233]
[1743812103808,3.2078,1815.9,1815.8,0.7713]
[1743812104115,0.7569,1815.9,1815.8,2.38110729]
[1743812104514,0.7569,1815.9,1815.8,2.38110061]
[1743812104717,0.7569,1815.9,1815.8,2.38112289]
[1743812105110,0.7569,1815.9,1815.8,2.3811257]
[1743812105314,0.7569,1815.9,1815.8,2.38104089]
[1743812105512,2.2077,1815.9,1815.8,2.38033668]
[1743812106017,2.2077,1815.9,1815.8,2.3797988]
[1743812106215,2.2077,1815.9,1815.8,2.3798698]
[1743812106411,2.2077,1815.9,1815.8,1.6085698]
[1743812107017,2.2077,1815.9,1815.8,0.79625521]
[1743812107218,2.2077,1815.9,1815.8,2.38018891]
[1743812107417,2.2077,1815.9,1815.8,1.56755521]
[1743812108111,2.2077,1815.9,1815.8,2.380044]
[1743812108307,2.2077,1815.9,1815.8,1.56755521]
[1743812109922,2.2077,1815.9,1815.8,2.37970837]
[1743812112424,3.97883,1816.5,1815.8,1.60840837]
[1743812112621,2.1249,1816.4,1816.2,0.7711]
[1743812112820,2.1249,1816.4,1815.9,3.68501905]
[1743812112821,4.6406,1816.3,1816.1,0.77114]
[1743812113022,2.1871,1816.2,1816.0,0.77118]
[1743812113216,1.4676,1816.1,1816.0,0.77118]
[1743812113421,2.1597,1816.1,1816.0,2.37906957]
[1743812113826,2.1597,1816.1,1816.0,1.56743521]
[1743812119027,2.1597,1816.1,1816.0,2.37847019]
[1743812119729,0.00826811,1816.2,1816.1,0.77117]
[1743812120029,0.00826811,1816.2,1816.1,5.25690804]
[1743812121026,0.00826811,1816.2,1816.1,4.57490804]
[1743812121226,0.00826811,1816.2,1816.1,4.57439696]
[1743812123528,0.00826811,1816.2,1816.1,4.57380183]
[1743812125428,8.11e-06,1816.2,1816.1,7.07380183]
[1743812125730,8.11e-06,1816.2,1816.1,7.62785578]
[1743812127223,8.11e-06,1816.2,1816.1,13.55385578]
[1743812127427,8.11e-06,1816.2,1816.1,12.74393975]
[1743812127627,8.11e-06,1816.2,1816.1,13.55229561]
[1743812127926,8.11e-06,1816.2,1816.1,13.96296581]
[1743812129437,8.11e-06,1816.2,1816.1,13.96228153]
[1743812130637,0.7659,1817.1,1817.0,0.77079]
[1743812130841,2.8871,1817.1,1817.0,0.77079]
[1743812131041,2.8871,1817.1,1817.0,1.57803789]
[1743812131243,2.8871,1817.1,1817.0,1.57801508]
[1743812131539,2.8871,1817.1,1817.0,0.77079]
[1743812131741,2.8871,1817.1,1817.0,1.56704521]
[1743812136041,2.8871,1817.1,1817.0,0.79625521]
[1743812136241,2.8871,1817.1,1816.9,0.00826811]
[1743812136445,1.4784,1817.0,1816.9,0.00826811]
[1743812138041,1.4784,1817.0,1816.9,0.77909811]
[1743812139741,5.45699,1817.0,1816.9,0.00826811]
[1743812140445,7.95699,1817.0,1816.9,0.00826811]
[1743812144547,0.77097,1816.6,1816.4,0.77103]
[1743812144744,3.9621,1816.5,1816.4,0.77103]
[1743812144949,5.4915,1816.5,1816.4,1.56349533]
[1743812145544,2.2837,1816.5,1816.4,1.56349533]
[1743812148448,2.2837,1816.5,1816.4,2.37380516]
[1743812150150,2.2837,1816.5,1816.4,2.37410119]
[1743812152048,2.2837,1816.5,1816.4,2.37432554]
[1743812155649,2.2837,1816.5,1816.4,1.56349533]
[1743812155955,2.2837,1816.5,1816.4,2.37461905]
[1743812157865,0.7475,1816.6,1816.5,0.771]
[1743812158057,0.7475,1816.6,1816.5,3.76228905]
[1743812158458,2.1579,1816.6,1816.5,3.76228905]
[1743812159264,0.7475,1816.6,1816.5,3.76228905]
[1743812160759,2.2439,1816.6,1816.5,3.76228905]
[1743812161167,2.2439,1816.6,1816.5,2.95116533]
[1743812161668,2.2439,1816.6,1816.5,3.76236074]
[1743812162564,3.9093,1816.7,1816.6,0.77096]
[1743812162771,3.9093,1816.7,1816.6,2.22946]
[1743812163071,3.9093,1816.7,1816.6,3.02192533]
[1743812163972,0.7015,1816.7,1816.6,3.83349791]
[1743812164271,0.6923,1816.8,1816.7,0.77092]
[1743812164465,3.9001,1816.8,1816.7,3.04099258]
[1743812164675,0.6923,1816.8,1816.7,3.83345791]
[1743812164974,0.6923,1816.8,1816.7,3.83354157]
[1743812165967,0.6923,1816.8,1816.7,4.59134157]
[1743812166167,3.9179,1817.0,1816.9,0.77083]
[1743812166667,6.1353,1817.0,1816.8,1.4537]
[1743812166867,4.6887,1817.0,1816.9,0.79246533]
[1743812167473,4.6207,1817.0,1816.9,1.56329533]
[1743812167771,3.2078,1817.0,1816.9,2.37114848]
[1743812168271,3.2078,1817.0,1816.9,2.37111253]
[1743812168474,0.00826811,1817.2,1817.1,0.77075]
[1743812168664,0.00826811,1817.2,1817.1,1.56321533]
[1743812169065,0.00826811,1817.2,1817.1,3.06161533]
[1743812169261,1.49746811,1817.2,1817.1,3.06161533]
[1743812169873,2.26816811,1817.2,1817.1,3.06161533]
[1743812170171,2.26816811,1817.2,1817.1,2.29086533]
[1743812170369,2.26816811,1817.2,1817.1,0.79246533]
[1743812170871,2.26816811,1817.2,1817.0,0.77076]
[1743812171075,1.4892,1817.1,1817.0,0.77076]
[1743812171767,1.4892,1817.1,1817.0,1.55040236]
[1743812172470,1.4892,1817.1,1817.0,2.35756661]
[1743812173470,0.00826811,1817.2,1817.1,0.77075]
[1743812173676,0.00826811,1817.2,1817.1,2.98349236]
[1743812174073,1.53816811,1817.2,1817.1,2.98349236]
[1743812174670,0.00826811,1817.2,1817.1,3.7901269]
[1743812175774,0.00826811,1817.2,1817.1,3.78973869]
[1743812177172,3.2078,1817.3,1817.1,3.78973869]
[1743812177173,3.2078,1817.3,1817.2,0.7707]
[1743812177369,1.415,1817.5,1817.4,0.77062]
[1743812177772,6.73884329,1817.7,1817.3,4.6302]
[1743812178082,0.7133,1817.6,1817.5,0.77054]
[1743812178279,2.1009,1817.6,1817.5,0.77054]
[1743812178575,2.1009,1817.6,1817.5,2.19294]
[1743812178780,2.1009,1817.6,1817.5,2.97019545]
[1743812181783,2.1009,1817.6,1817.5,2.19294]
[1743812182985,2.1009,1817.6,1817.5,2.96891533]
[1743812183583,2.1009,1817.6,1817.5,2.19294]
[1743812183973,0.7133,1817.6,1817.5,2.19294]
[1743812184173,3.9548114,1817.7,1817.6,0.77053]
[1743812184378,3.9548114,1817.7,1817.6,2.15353]
[1743812184779,3.2531114,1817.7,1817.6,2.15353]
[1743812185383,3.2531114,1817.7,1817.6,2.92904818]
[1743812187888,4.0236014,1817.7,1817.6,0.77551818]
[1743812188088,5.4829014,1817.7,1817.6,0.77551818]
[1743812188284,4.7124114,1817.7,1817.6,0.77551818]
[1743812188482,4.7124114,1817.7,1817.6,0.77053]
[1743812190384,3.2531114,1817.7,1817.6,0.77053]
[1743812190887,3.2531114,1817.7,1817.6,1.54266891]
[1743812193185,0.0453114,1817.7,1817.6,1.54266891]
[1743812197393,1.5271114,1817.7,1817.6,2.34723907]
[1743812198191,1.5271114,1817.7,1817.6,2.34749277]
[1743812199290,2.2976014,1817.7,1817.6,0.77213891]
[1743812200498,2.2976014,1817.7,1817.5,0.77057]
[1743812200696,2.2435,1817.6,1817.5,0.77057]
[1743812201296,2.2435,1817.6,1817.5,1.54472267]
[1743812202399,2.2435,1817.6,1817.5,2.35100224]
[1743812203794,2.2435,1817.6,1817.5,2.35134866]
[1743812205801,2.2435,1817.6,1817.5,2.35189811]
[1743812209501,2.2435,1817.6,1817.5,2.35246622]
[1743812211403,2.2435,1817.6,1817.5,2.35240645]
[1743812213001,3.01403,1817.6,1817.5,1.58183645]
[1743812213208,3.01403,1817.6,1817.5,0.77415267]
[1743812213407,3.01403,1817.6,1817.5,1.54473267]
[1743812214012,3.01403,1817.6,1817.5,0.77415267]
[1743812214206,3.01403,1817.6,1817.5,1.54473267]
[1743812214409,2.2435,1817.6,1817.5,1.54473267]
[1743812216409,5.4513,1817.6,1817.5,1.54473267]
[1743812216613,5.4513,1817.6,1817.5,2.35215467]
[1743812216914,5.4513,1817.6,1817.5,2.35214085]
[1743812217508,5.4513,1817.6,1817.5,1.54473267]
[1743812217906,5.4513,1817.6,1817.5,2.35215363]
[1743812218310,5.4513,1817.6,1817.5,2.35215983]
[1743812218613,5.4513,1817.6,1817.5,1.54473267]
[1743812219114,5.4513,1817.6,1817.5,2.35211562]
[1743812219922,5.4513,1817.6,1817.5,1.54473267]
[1743812220810,5.4513,1817.6,1817.5,2.35205701]
[1743812221920,5.4513,1817.6,1817.5,2.35205872]
[1743812222819,3.9397,1817.6,1817.5,2.35205872]
[1743812223120,0.7319,1817.6,1817.5,2.35205872]
[1743812223822,0.7319,1817.6,1817.5,3.82772125]
[1743812224922,0.7319,1817.6,1817.5,3.02053267]
[1743812225221,0.7319,1817.6,1817.5,3.82781041]
[1743812227222,0.7319,1817.6,1817.5,2.35201041]
[1743812227620,0.7319,1817.6,1817.5,2.35234867]
[1743812227825,2.257,1817.6,1817.5,2.35234867]
[1743812237031,3.2531114,1817.7,1817.6,0.77053]
[1743812237230,3.2531114,1817.7,1817.6,3.084746]
[1743812237433,0.0453114,1817.7,1817.6,3.85889867]
[1743812238736,0.0453114,1817.7,1817.6,3.8588379]
[1743812240441,0.0453114,1817.7,1817.6,3.05128267]
[1743812242543,0.0453114,1817.7,1817.6,3.05298646]
[1743812243542,0.0453114,1817.7,1817.6,3.86055276]
[1743812243741,6.6988,1817.9,1817.8,0.77045]
[1743812244044,6.6988,1817.9,1817.8,2.35362867]
[1743812244233,6.6988,1817.9,1817.8,2.35348279]
[1743812244634,4.6221,1817.9,1817.8,2.35348279]
[1743812244839,8.1131,1817.9,1817.8,2.35348279]
[1743812245039,8.88351,1817.9,1817.8,1.54630646]
[1743812245343,8.1131,1817.9,1817.8,1.54630646]
[1743812248442,8.1131,1817.9,1817.8,2.35352629]
[1743812251249,3.2078,1817.9,1817.8,2.35325676]
[1743812252951,3.2078,1817.9,1817.8,2.35310672]
[1743812253849,4.6815,1817.9,1817.8,2.35310672]
[1743812254250,4.6815,1817.9,1817.8,2.35305735]
[1743812254849,4.6815,1817.9,1817.8,2.35303671]
[1743812256043,5.45191,1817.9,1817.8,0.77585646]
[1743812260449,7.95191,1817.9,1817.8,0.77585646]
[1743812260853,7.95191,1817.9,1817.4,1.4474]
[1743812260854,0.77055,1817.6,1817.4,1.4474]
[1743812261057,1.4104,1817.5,1817.4,2.21802]
[1743812261258,2.837,1817.5,1817.4,3.02508627]
[1743812261757,2.837,1817.5,1817.4,3.80021303]
[1743812267967,2.837,1817.5,1817.4,3.80021261]
[1743812269769,2.837,1817.5,1817.4,3.80008553]
[1743812271573,2.837,1817.5,1817.4,2.35268553]
[1743812271771,2.837,1817.5,1817.4,2.3526075]
[1743812277383,2.837,1817.5,1817.4,2.35234634]
[1743812278771,2.837,1817.5,1817.4,2.35236353]
[1743812279276,3.491,1817.7,1817.4,1.58174353]
[1743812279578,6.4015,1817.7,1817.6,0.77053]
[1743812280081,6.4015,1817.7,1817.6,1.54565676]
[1743812281687,7.17199,1817.7,1817.6,1.54565676]